fUSD/lending_fUSD_20250125
["ID","MTS","AMOUNT","RATE_DAILY","PERIOD"]
[350348643,1737807068692,-1597.93,0.00017945,2]
[350348644,1737807068703,-500.0,0.00017945,2]
[350348645,1737807068713,-663.46,0.00017945,2]
[350348646,1737807068723,-500.0,0.00017945,2]
[350348647,1737807068732,-500.0,0.00017945,2]
[350348648,1737807068742,-579.17,0.00017945,2]
[350348649,1737807068752,-522.15,0.00017945,2]
[350348650,1737807068762,-1015.62,0.00017945,2]
[350348651,1737807068776,-807.99,0.00017945,2]
[350348652,1737807068786,-796.76,0.0001798,2]
[350348653,1737807068796,-500.0,0.0001798,2]
[350348654,1737807068806,-1013.73,0.0001798,2]
[350348655,1737807068818,-500.0,0.0001798,2]
[350348656,1737807068827,-905.13,0.0001798,2]
[350348657,1737807068837,-646.83,0.0001798,2]
[350348658,1737807068848,-500.0,0.0001798,2]
[350348659,1737807068858,-1335.49,0.0001798,2]
[350348660,1737807068868,-1333.21,0.0001798,2]
[350348661,1737807068878,-500.0,0.0001798,2]
[350348662,1737807068888,-847.45,0.0001798,2]
[350348663,1737807068900,-651.2,0.0001798,2]
[350348664,1737807068911,-500.0,0.0001798,2]
[350348665,1737807068921,-1008.86,0.0001798,2]
[350348666,1737807068931,-500.0,0.0001798,2]
[350348667,1737807068941,-796.64,0.0001798,2]
[350348668,1737807068952,-500.0,0.0001798,2]
[350348669,1737807068963,-617.69,0.00017981,2]
[350348670,1737807068973,-500.0,0.00017981,2]
[350348671,1737807068982,-500.0,0.00017981,2]
[350348672,1737807068992,-500.0,0.00017981,2]
[350348673,1737807069002,-500.0,0.00017981,2]
[350348674,1737807069011,-651.55,0.00017981,2]
[350348675,1737807069020,-1063.63,0.00017981,2]
[350348676,1737807069030,-500.0,0.00017981,2]
[350348677,1737807069040,-500.0,0.00017981,2]
[350348678,1737807069050,-500.0,0.00017981,2]
[350348679,1737807069060,-1113.67,0.00017981,2]
[350348680,1737807069070,-500.0,0.00017981,2]
[350348681,1737807069080,-685.5,0.00017981,2]
[350348682,1737807069089,-1371.57,0.00017981,2]
[350348683,1737807069099,-500.0,0.00017981,2]
[350348684,1737807069109,-500.0,0.00017981,2]
[350348685,1737807069118,-500.0,0.00017981,2]
[350348686,1737807069128,-660.57,0.00017981,2]
[350348687,1737807069138,-500.0,0.00017981,2]
[350348688,1737807069148,-575.05,0.00017981,2]
[350348689,1737807069157,-500.0,0.00017981,2]
[350348690,1737807069167,-1596.3,0.00017981,2]
[350348691,1737807069176,-1472.3,0.00017981,2]
[350348692,1737807069186,-500.0,0.00017981,2]
[350348693,1737807069195,-500.0,0.00017981,2]
[350348694,1737807069205,-1274.99,0.00017981,2]
[350348695,1737807069214,-180.526,0.00018,2]
[350348696,1737807069225,-2740.349,0.00018,2]
[350348697,1737807069234,-1321.05501897,0.00018,2]
[350348698,1737807069244,-6443.0,0.00018055,2]
[350348699,1737807069253,-18529.0,0.00018055,2]
[350348700,1737807069262,-803.0,0.00018055,2]
[350348701,1737807069372,-500.0,0.00018081,2]
[350348702,1737807069383,-500.0,0.00018081,2]
[350348703,1737807069392,-500.0,0.00018081,2]
[350348704,1737807069401,-500.0,0.00018081,2]
[350348705,1737807069410,-500.0,0.00018081,2]
[350348706,1737807069419,-500.0,0.00018081,2]
[350348707,1737807069428,-500.0,0.00018081,2]
[350348708,1737807069437,-500.0,0.00018081,2]
[350348709,1737807069446,-500.0,0.00018081,2]
[350348710,1737807069457,-500.0,0.00018081,2]
[350348711,1737807069473,-500.0,0.00018081,2]
[350348712,1737807069484,-635.45,0.00018081,2]
[350348713,1737807069494,-906.75,0.00018081,2]
[350348714,1737807069504,-500.0,0.00018081,2]
[350348715,1737807069513,-500.0,0.00018081,2]
[350348716,1737807069523,-1000.0,0.00018081,2]
[350348717,1737807069532,-1817.31,0.00018081,2]
[350348718,1737807069542,-791.67,0.00018081,2]
[350348719,1737807069551,-500.0,0.00018081,2]
[350348720,1737807069561,-500.0,0.00018081,2]
[350348721,1737807069572,-1122.79,0.00018081,2]
[350348722,1737807069581,-151.0,0.00018081,2]
[350348723,1737807069591,-566.08,0.00018081,2]
[350348724,1737807069601,-1134.77,0.00018081,2]
[350348725,1737807069611,-1987.77,0.00018081,2]
[350348726,1737807069622,-500.0,0.00018081,2]
[350348727,1737807069632,-500.0,0.00018081,2]
[350348728,1737807069643,-500.0,0.00018081,2]
[350348729,1737807069652,-319.33388806,0.00018081,2]
[350348730,1737807069662,-626.37,0.00018081,2]
[350348731,1737807069671,-500.0,0.00018081,2]
[350348732,1737807069680,-597.78,0.00018081,2]
[350348733,1737807069690,-500.0,0.00018081,2]
[350348734,1737807069700,-500.0,0.00018082,2]
[350348735,1737807069709,-471.31,0.00018082,2]
[350348736,1737807069719,-514.71,0.00018082,2]
[350348737,1737807069728,-151.0,0.00018082,2]
[350348738,1737807069738,-151.0,0.00018082,2]
[350348739,1737807069748,-536.23,0.00018082,2]
[350348740,1737807069757,-500.0,0.00018082,2]
[350348741,1737807069769,-500.0,0.00018082,2]
[350348742,1737807069780,-1156.91,0.00018082,2]
[350348743,1737807069789,-995.51,0.00018082,2]
[350348744,1737807069799,-990.91,0.00018082,2]
[350348745,1737807069809,-605.7,0.00018082,2]
[350348746,1737807069821,-1310.85,0.00018082,2]
[350348747,1737807069830,-1790.49,0.00018082,2]
[350348748,1737807069840,-1594.57,0.00018082,2]
[350348749,1737807069851,-513.83,0.00018082,2]
[350348750,1737807069860,-586.37,0.00018082,2]
[350348751,1737807069870,-1597.93,0.00018082,2]
[350348752,1737807069880,-500.0,0.00018082,2]
[350348753,1737807069891,-663.46,0.00018082,2]
[350348754,1737807069901,-500.0,0.00018082,2]
[350348755,1737807069911,-500.0,0.00018082,2]
[350348756,1737807069920,-579.17,0.00018082,2]
[350348757,1737807069930,-522.15,0.00018082,2]
[350348758,1737807069940,-1015.62,0.00018082,2]
[350348759,1737807069950,-807.99,0.00018082,2]
[350348760,1737807069959,-200.0,0.00018082,2]
[350348761,1737807069968,-566.71,0.00018082,2]
[350348762,1737807069978,-527.3868089,0.00018107,2]
[350348763,1737807069987,-796.76,0.00018117,2]
[350348764,1737807069996,-500.0,0.00018117,2]
[350348765,1737807070006,-1013.73,0.00018117,2]
[350348766,1737807070015,-500.0,0.00018117,2]
[350348767,1737807070025,-905.13,0.00018117,2]
[350348768,1737807070035,-646.83,0.00018117,2]
[350348769,1737807070045,-500.0,0.00018117,2]
[350348770,1737807070055,-1335.49,0.00018117,2]
[350348771,1737807070064,-1333.21,0.00018117,2]
[350348772,1737807070073,-376.93,0.00018117,2]
[350348773,1737807070083,-847.45,0.00018117,2]
[350348774,1737807070093,-651.2,0.00018117,2]
[350348775,1737807070102,-500.0,0.00018117,2]
[350348776,1737807070111,-1008.86,0.00018117,2]
[350348777,1737807070121,-500.0,0.00018117,2]
[350348778,1737807070130,-796.64,0.00018117,2]
[350348779,1737807070140,-500.0,0.00018117,2]
[350348780,1737807070149,-500.0,0.00018118,2]
[350348781,1737807070159,-500.0,0.00018118,2]
[350348782,1737807070168,-206.33384278,0.00018118,2]
[350348783,1737807070177,-500.0,0.00018118,2]
[350348784,1737807070186,-651.55,0.00018118,2]
[350348785,1737807070195,-1063.63,0.00018118,2]
[350348786,1737807070205,-500.0,0.00018118,2]
[350348787,1737807070215,-500.0,0.00018118,2]
[350348788,1737807070225,-500.0,0.00018118,2]
[350348789,1737807070234,-1113.67,0.00018118,2]
[350348790,1737807070244,-500.0,0.00018118,2]
[350348791,1737807070253,-685.5,0.00018118,2]
[350348792,1737807070262,-1371.57,0.00018118,2]
[350348793,1737807070273,-500.0,0.00018118,2]
[350348794,1737807070283,-500.0,0.00018118,2]
[350348795,1737807070293,-500.0,0.00018118,2]
[350348796,1737807070303,-660.57,0.00018118,2]
[350348797,1737807070312,-500.0,0.00018118,2]
[350348798,1737807070322,-575.05,0.00018118,2]
[350348799,1737807070333,-500.0,0.00018118,2]
[350348800,1737807070343,-1596.3,0.00018118,2]
[350348801,1737807070353,-1472.3,0.00018118,2]
[350348802,1737807070362,-500.0,0.00018118,2]
[350348803,1737807070372,-500.0,0.00018118,2]
[350348804,1737807070382,-1274.99,0.00018118,2]
[350348805,1737807070391,-168.27944598,0.00018119,2]
[350348806,1737807070401,-500.0,0.00018164,2]
[350348807,1737807070410,-500.0,0.00018164,2]
[350348808,1737807070420,-563.66,0.00018217,2]
[350348809,1737807070429,-500.0,0.00018218,2]
[350348810,1737807070438,-187.56111789,0.00018218,2]
[350348811,1737807070447,-441.25,0.00018218,2]
[350348812,1737807070456,-500.0,0.00018218,2]
[350348813,1737807070466,-500.0,0.00018218,2]
[350348814,1737807070475,-500.0,0.00018218,2]
[350348815,1737807070484,-500.0,0.00018218,2]
[350348816,1737807070493,-507.49517813,0.00018218,2]
[350348817,1737807070504,-500.0,0.00018218,2]
[350348818,1737807070513,-500.0,0.00018218,2]
[350348819,1737807070522,-500.0,0.00018218,2]
[350348820,1737807070532,-635.45,0.00018218,2]
[350348821,1737807070541,-906.75,0.00018218,2]
[350348822,1737807070551,-500.0,0.00018218,2]
[350348823,1737807070561,-500.0,0.00018218,2]
[350348824,1737807070573,-1000.0,0.00018218,2]
[350348825,1737807070584,-1817.31,0.00018218,2]
[350348826,1737807070594,-791.67,0.00018218,2]
[350348827,1737807070604,-500.0,0.00018218,2]
[350348828,1737807070613,-500.0,0.00018218,2]
[350348829,1737807070623,-1122.79,0.00018218,2]
[350348830,1737807070632,-1134.77,0.00018218,2]
[350348831,1737807070642,-1987.77,0.00018218,2]
[350348832,1737807070652,-500.0,0.00018218,2]
[350348833,1737807070662,-500.0,0.00018218,2]
[350348834,1737807070671,-500.0,0.00018218,2]
[350348835,1737807070680,-626.37,0.00018218,2]
[350348836,1737807070690,-500.0,0.00018218,2]
[350348837,1737807070699,-500.0,0.00018218,2]
[350348838,1737807070709,-183.67,0.00018219,2]
[350348839,1737807070719,-536.23,0.00018219,2]
[350348840,1737807070728,-500.0,0.00018219,2]
[350348841,1737807070738,-500.0,0.00018219,2]
[350348842,1737807070748,-1156.91,0.00018219,2]
[350348843,1737807070757,-995.51,0.00018219,2]
[350348844,1737807070768,-990.91,0.00018219,2]
[350348845,1737807070780,-605.7,0.00018219,2]
[350348846,1737807070789,-1310.85,0.00018219,2]
[350348847,1737807070799,-1790.49,0.00018219,2]
[350348848,1737807070808,-1594.57,0.00018219,2]
[350348849,1737807070818,-513.83,0.00018219,2]
[350348850,1737807070827,-586.37,0.00018219,2]
[350348851,1737807070837,-1597.93,0.00018219,2]
[350348852,1737807070848,-184.59,0.00018219,2]
[350348853,1737807070858,-663.46,0.00018219,2]
[350348854,1737807070867,-500.0,0.00018219,2]
[350348855,1737807070877,-500.0,0.00018219,2]
[350348856,1737807070886,-579.17,0.00018219,2]
[350348857,1737807070895,-522.15,0.00018219,2]
[350348858,1737807070904,-1015.62,0.00018219,2]
[350348859,1737807070914,-807.99,0.00018219,2]
[350348860,1737807070924,-796.76,0.00018254,2]
[350348861,1737807070933,-500.0,0.00018254,2]
[350348862,1737807070943,-1013.73,0.00018254,2]
[350348863,1737807070953,-500.0,0.00018254,2]
[350348864,1737807070963,-905.13,0.00018254,2]
[350348865,1737807070972,-646.83,0.00018254,2]
[350348866,1737807070982,-500.0,0.00018254,2]
[350348867,1737807070992,-1335.49,0.00018254,2]
[350348868,1737807071002,-1333.21,0.00018254,2]
[350348869,1737807071012,-847.45,0.00018254,2]
[350348870,1737807071021,-651.2,0.00018254,2]
[350348871,1737807071031,-327.25,0.00018254,2]
[350348872,1737807071040,-1008.86,0.00018254,2]
[350348873,1737807071051,-500.0,0.00018254,2]
[350348874,1737807071060,-796.64,0.00018254,2]
[350348875,1737807071156,-500.0,0.00018254,2]
[350348876,1737807071175,-265.07,0.00018255,2]
[350348877,1737807071184,-500.0,0.00018255,2]
[350348878,1737807071194,-500.0,0.00018255,2]
[350348879,1737807071203,-651.55,0.00018255,2]
[350348880,1737807071213,-1063.63,0.00018255,2]
[350348881,1737807071222,-500.0,0.00018255,2]
[350348882,1737807071231,-500.0,0.00018255,2]
[350348883,1737807071241,-500.0,0.00018255,2]
[350348884,1737807071250,-1113.67,0.00018255,2]
[350348885,1737807071260,-500.0,0.00018255,2]
[350348886,1737807071270,-685.5,0.00018255,2]
[350348887,1737807071279,-1371.57,0.00018255,2]
[350348888,1737807071289,-340.11,0.00018255,2]
[350348889,1737807071298,-530.10001756,0.00018255,2]
[350348890,1737807071307,-500.0,0.00018255,2]
[350348891,1737807071317,-660.57,0.00018255,2]
[350348892,1737807071326,-383.9,0.00018255,2]
[350348893,1737807071335,-575.05,0.00018255,2]
[350348894,1737807071344,-500.0,0.00018255,2]
[350348895,1737807071354,-1596.3,0.00018255,2]
[350348896,1737807071363,-1472.3,0.00018255,2]
[350348897,1737807071372,-500.0,0.00018255,2]
[350348898,1737807071381,-500.0,0.00018255,2]
[350348899,1737807071391,-1274.99,0.00018255,2]
[350348900,1737807071400,-527.3868089,0.00018279,2]
[350348901,1737807071410,-186.14,0.00018355,2]
[350348902,1737807071419,-500.0,0.00018355,2]
[350348903,1737807071429,-500.0,0.00018355,2]
[350348904,1737807071438,-500.0,0.00018355,2]
[350348905,1737807071447,-500.0,0.00018355,2]
[350348906,1737807071456,-500.0,0.00018355,2]
[350348907,1737807071467,-500.0,0.00018355,2]
[350348908,1737807071477,-500.0,0.00018355,2]
[350348909,1737807071487,-500.0,0.00018355,2]
[350348910,1737807071497,-635.45,0.00018355,2]
[350348911,1737807071507,-906.75,0.00018355,2]
[350348912,1737807071517,-500.0,0.00018355,2]
[350348913,1737807071528,-500.0,0.00018355,2]
[350348914,1737807071538,-1000.0,0.00018355,2]
[350348915,1737807071547,-1817.31,0.00018355,2]
[350348916,1737807071558,-791.67,0.00018355,2]
[350348917,1737807071568,-500.0,0.00018355,2]
[350348918,1737807071578,-500.0,0.00018355,2]
[350348919,1737807071588,-1122.79,0.00018355,2]
[350348920,1737807071598,-1134.77,0.00018355,2]
[350348921,1737807071608,-1987.77,0.00018355,2]
[350348922,1737807071617,-500.0,0.00018355,2]
[350348923,1737807071627,-189.05,0.00018355,2]
[350348924,1737807071636,-214.35,0.00018355,2]
[350348925,1737807071646,-626.37,0.00018355,2]
[350348926,1737807071657,-500.0,0.00018355,2]
[350348927,1737807071667,-164.740247,0.00018355,2]
[350348928,1737807071677,-500.0,0.00018355,2]
[350348929,1737807071687,-164.740247,0.00018355,2]
[350348930,1737807071699,-266.793749,0.00018355,2]
[350348931,1737807071708,-536.23,0.00018356,2]
[350348932,1737807071718,-500.0,0.00018356,2]
[350348933,1737807071727,-500.0,0.00018356,2]
[350348934,1737807071737,-1156.91,0.00018356,2]
[350348935,1737807071747,-995.51,0.00018356,2]
[350348936,1737807071757,-990.91,0.00018356,2]
[350348937,1737807071767,-605.7,0.00018356,2]
[350348938,1737807071780,-1310.85,0.00018356,2]
[350348939,1737807071790,-1790.49,0.00018356,2]
[350348940,1737807071799,-1594.57,0.00018356,2]
[350348941,1737807071809,-513.83,0.00018356,2]
[350348942,1737807071819,-586.37,0.00018356,2]
[350348943,1737807071828,-1597.93,0.00018356,2]
[350348944,1737807071838,-663.46,0.00018356,2]
[350348945,1737807071850,-500.0,0.00018356,2]
[350348946,1737807071860,-500.0,0.00018356,2]
[350348947,1737807071869,-579.17,0.00018356,2]
[350348948,1737807071879,-522.15,0.00018356,2]
[350348949,1737807071889,-1015.62,0.00018356,2]
[350348950,1737807071898,-807.99,0.00018356,2]
[350348951,1737807071908,-6126.35304055,0.00018386,2]
[350348952,1737807071917,-796.76,0.00018391,2]
[350348953,1737807071927,-500.0,0.00018391,2]
[350348954,1737807071936,-1013.73,0.00018391,2]
[350348955,1737807071946,-365.9880022,0.00018391,2]
[350348956,1737807071955,-905.13,0.00018391,2]
[350348957,1737807071965,-646.83,0.00018391,2]
[350348958,1737807071974,-500.0,0.00018391,2]
[350348959,1737807071984,-1335.49,0.00018391,2]
[350348960,1737807071993,-1333.21,0.00018391,2]
[350348961,1737807072002,-847.45,0.00018391,2]
[350348962,1737807072011,-651.2,0.00018391,2]
[350348963,1737807072020,-1008.86,0.00018391,2]
[350348964,1737807072031,-500.0,0.00018391,2]
[350348965,1737807072040,-796.64,0.00018391,2]
[350348966,1737807072050,-500.0,0.00018391,2]
[350348967,1737807072059,-274.48,0.00018392,2]
[350348968,1737807072069,-322.64,0.00018392,2]
[350348969,1737807072079,-651.55,0.00018392,2]
[350348970,1737807072089,-1063.63,0.00018392,2]
[350348971,1737807072099,-500.0,0.00018392,2]
[350348972,1737807072109,-500.0,0.00018392,2]
[350348973,1737807072120,-500.0,0.00018392,2]
[350348974,1737807072130,-1113.67,0.00018392,2]
[350348975,1737807072140,-500.0,0.00018392,2]
[350348976,1737807072150,-685.5,0.00018392,2]
[350348977,1737807072159,-1371.57,0.00018392,2]
[350348978,1737807072169,-500.0,0.00018392,2]
[350348979,1737807072179,-660.57,0.00018392,2]
[350348980,1737807072189,-575.05,0.00018392,2]
[350348981,1737807072198,-500.0,0.00018392,2]
[350348982,1737807072208,-1596.3,0.00018392,2]
[350348983,1737807072218,-1472.3,0.00018392,2]
[350348984,1737807072227,-500.0,0.00018392,2]
[350348985,1737807072237,-500.0,0.00018392,2]
[350348986,1737807072247,-1274.99,0.00018392,2]
[350348987,1737807072256,-527.3868089,0.00018452,2]
[350348988,1737807072266,-642.9136586,0.00018459,2]
[350348989,1737807072276,-500.0,0.00018492,2]
[350348990,1737807072285,-500.0,0.00018492,2]
[350348991,1737807072295,-500.0,0.00018492,2]
[350348992,1737807072305,-500.0,0.00018492,2]
[350348993,1737807072315,-500.0,0.00018492,2]
[350348994,1737807072324,-500.0,0.00018492,2]
[350348995,1737807072335,-500.0,0.00018492,2]
[350348996,1737807072344,-500.0,0.00018492,2]
[350348997,1737807072354,-635.45,0.00018492,2]
[350348998,1737807072363,-906.75,0.00018492,2]
[350348999,1737807072372,-500.0,0.00018492,2]
[350349000,1737807072383,-1000.0,0.00018492,2]
[350349001,1737807072392,-1817.31,0.00018492,2]
[350349002,1737807072402,-791.67,0.00018492,2]
[350349003,1737807072411,-500.0,0.00018492,2]
[350349004,1737807072421,-500.0,0.00018492,2]
[350349005,1737807072431,-1122.79,0.00018492,2]
[350349006,1737807072441,-1134.77,0.00018492,2]
[350349007,1737807072451,-1987.77,0.00018492,2]
[350349008,1737807072460,-242.19,0.00018492,2]
[350349009,1737807072471,-626.37,0.00018492,2]
[350349010,1737807072481,-500.0,0.00018492,2]
[350349011,1737807072491,-500.0,0.00018492,2]
[350349012,1737807072501,-536.23,0.00018493,2]
[350349013,1737807072511,-500.0,0.00018493,2]
[350349014,1737807072522,-500.0,0.00018493,2]
[350349015,1737807072532,-1156.91,0.00018493,2]
[350349016,1737807072541,-995.51,0.00018493,2]
[350349017,1737807072550,-990.91,0.00018493,2]
[350349018,1737807072560,-605.7,0.00018493,2]
[350349019,1737807072570,-1310.85,0.00018493,2]
[350349020,1737807072579,-1790.49,0.00018493,2]
[350349021,1737807072589,-1594.57,0.00018493,2]
[350349022,1737807072599,-513.83,0.00018493,2]
[350349023,1737807072609,-586.37,0.00018493,2]
[350349024,1737807072618,-1597.93,0.00018493,2]
[350349025,1737807072628,-159.219143,0.00018493,2]
[350349026,1737807072638,-159.219143,0.00018493,2]
[350349027,1737807072647,-663.46,0.00018493,2]
[350349028,1737807072657,-500.0,0.00018493,2]
[350349029,1737807072667,-500.0,0.00018493,2]
[350349030,1737807072677,-579.17,0.00018493,2]
[350349031,1737807072687,-522.15,0.00018493,2]
[350349032,1737807072697,-1015.62,0.00018493,2]
[350349033,1737807072706,-807.99,0.00018493,2]
[350349034,1737807072716,-158.75660413,0.000185,2]
[350349035,1737807072725,-796.76,0.00018528,2]
[350349036,1737807072828,-500.0,0.00018528,2]
[350349037,1737807072838,-1013.73,0.00018528,2]
[350349038,1737807072848,-905.13,0.00018528,2]
[350349039,1737807072857,-646.83,0.00018528,2]
[350349040,1737807072868,-500.0,0.00018528,2]
[350349041,1737807072877,-1335.49,0.00018528,2]
[350349042,1737807072887,-1333.21,0.00018528,2]
[350349043,1737807072897,-847.45,0.00018528,2]
[350349044,1737807072907,-651.2,0.00018528,2]
[350349045,1737807072917,-1008.86,0.00018528,2]
[350349046,1737807072927,-500.0,0.00018528,2]
[350349047,1737807072937,-796.64,0.00018528,2]
[350349048,1737807072947,-500.0,0.00018528,2]
[350349049,1737807072957,-651.55,0.00018529,2]
[350349050,1737807072967,-1063.63,0.00018529,2]
[350349051,1737807072977,-500.0,0.00018529,2]
[350349052,1737807072987,-500.0,0.00018529,2]
[350349053,1737807072998,-500.0,0.00018529,2]
[350349054,1737807073008,-1113.67,0.00018529,2]
[350349055,1737807073018,-500.0,0.00018529,2]
[350349056,1737807073027,-685.5,0.00018529,2]
[350349057,1737807073036,-1371.57,0.00018529,2]
[350349058,1737807073046,-500.0,0.00018529,2]
[350349059,1737807073056,-660.57,0.00018529,2]
[350349060,1737807073067,-575.05,0.00018529,2]
[350349061,1737807073078,-283.18,0.00018529,2]
[350349062,1737807073088,-1596.3,0.00018529,2]
[350349063,1737807073099,-1472.3,0.00018529,2]
[350349064,1737807073109,-500.0,0.00018529,2]
[350349065,1737807073118,-500.0,0.00018529,2]
[350349066,1737807073128,-1274.99,0.00018529,2]
[350349067,1737807073138,-177.81,0.00018532,2]
[350349068,1737807073148,-1088.01040897,0.00018541,2]
[350349069,1737807073158,-500.77087357,0.00018557,2]
[350349070,1737807073168,-543.18342147,0.00018557,2]
[350349071,1737807073178,-228.06318773,0.00018558,2]
[350349072,1737807073188,-228.06318773,0.00018558,2]
[350349073,1737807073199,-228.06318773,0.00018558,2]
[350349074,1737807073209,-527.3868089,0.00018624,2]
[350349075,1737807073218,-1000.0,0.00018628,2]
[350349076,1737807073228,-500.0,0.00018629,2]
[350349077,1737807073237,-280.19,0.00018629,2]
[350349078,1737807073247,-223.63,0.00018629,2]
[350349079,1737807073257,-500.0,0.00018629,2]
[350349080,1737807073267,-151.0,0.00018629,2]
[350349081,1737807073276,-500.0,0.00018629,2]
[350349082,1737807073286,-500.0,0.00018629,2]
[350349083,1737807073295,-500.0,0.00018629,2]
[350349084,1737807073304,-500.0,0.00018629,2]
[350349085,1737807073314,-635.45,0.00018629,2]
[350349086,1737807073323,-906.75,0.00018629,2]
[350349087,1737807073333,-500.0,0.00018629,2]
[350349088,1737807073343,-1000.0,0.00018629,2]
[350349089,1737807073352,-1817.31,0.00018629,2]
[350349090,1737807073362,-791.67,0.00018629,2]
[350349091,1737807073372,-500.0,0.00018629,2]
[350349092,1737807073381,-1122.79,0.00018629,2]
[350349093,1737807073391,-1134.77,0.00018629,2]
[350349094,1737807073401,-1987.77,0.00018629,2]
[350349095,1737807073410,-626.37,0.00018629,2]
[350349096,1737807073420,-331.48,0.00018629,2]
[350349097,1737807073430,-256.4,0.00018629,2]
[350349098,1737807073440,-536.23,0.0001863,2]
[350349099,1737807073450,-500.0,0.0001863,2]
[350349100,1737807073461,-500.0,0.0001863,2]
[350349101,1737807073471,-1156.91,0.0001863,2]
[350349102,1737807073482,-995.51,0.0001863,2]
[350349103,1737807073492,-990.91,0.0001863,2]
[350349104,1737807073503,-605.7,0.0001863,2]
[350349105,1737807073514,-1310.85,0.0001863,2]
[350349106,1737807073525,-1790.49,0.0001863,2]
[350349107,1737807073535,-1594.57,0.0001863,2]
[350349108,1737807073545,-513.83,0.0001863,2]
[350349109,1737807073555,-586.37,0.0001863,2]
[350349110,1737807073565,-1597.93,0.0001863,2]
[350349111,1737807073575,-663.46,0.0001863,2]
[350349112,1737807073585,-500.0,0.0001863,2]
[350349113,1737807073596,-500.0,0.0001863,2]
[350349114,1737807073606,-579.17,0.0001863,2]
[350349115,1737807073615,-522.15,0.0001863,2]
[350349116,1737807073625,-1015.62,0.0001863,2]
[350349117,1737807073634,-807.99,0.0001863,2]
[350349118,1737807073645,-796.76,0.00018665,2]
[350349119,1737807073655,-500.0,0.00018665,2]
[350349120,1737807073665,-1013.73,0.00018665,2]
[350349121,1737807073675,-905.13,0.00018665,2]
[350349122,1737807073685,-646.83,0.00018665,2]
[350349123,1737807073695,-500.0,0.00018665,2]
[350349124,1737807073705,-1335.49,0.00018665,2]
[350349125,1737807073715,-1333.21,0.00018665,2]
[350349126,1737807073725,-847.45,0.00018665,2]
[350349127,1737807073735,-651.2,0.00018665,2]
[350349128,1737807073744,-1008.86,0.00018665,2]
[350349129,1737807073754,-500.0,0.00018665,2]
[350349130,1737807073763,-796.64,0.00018665,2]
[350349131,1737807073776,-500.0,0.00018665,2]
[350349132,1737807073785,-651.55,0.00018666,2]
[350349133,1737807073795,-1063.63,0.00018666,2]
[350349134,1737807073805,-500.0,0.00018666,2]
[350349135,1737807073815,-500.0,0.00018666,2]
[350349136,1737807073824,-413.89,0.00018666,2]
[350349137,1737807073833,-1113.67,0.00018666,2]
[350349138,1737807073843,-500.0,0.00018666,2]
[350349139,1737807073854,-685.5,0.00018666,2]
[350349140,1737807073864,-1371.57,0.00018666,2]
[350349141,1737807073873,-500.0,0.00018666,2]
[350349142,1737807073883,-660.57,0.00018666,2]